[Event "Titled Tuesday Blitz May 23 Late 2023"]
[White "Tejedor Fuente, Enrique"]
[Black "Balla, Tamas-Kristof"]
[WhiteFideId "2299100"]
[BlackFideId "1208497"]
[WhiteElo "2496"]
[BlackElo "2334"]
[Result "1-0"]
[Round "09"]
[TimeControl "180+2"]
[Date "2023.05.23"]
[WhiteClock "0:01:12"]
[BlackClock "0:00:06"]

1. b4 {[%clk 0:03:00]}  e5 {[%clk 0:02:58]} 2. Bb2 {[%clk 0:03:01]}  Bxb4 {[%clk 0:02:57]} 3. Bxe5 {[%clk 0:03:01]}  Nf6 {[%clk 0:02:57]} 4. Nf3 {[%clk 0:03:01]}  O-O {[%clk 0:02:57]} 5. e3 {[%clk 0:03:01]}  Re8 {[%clk 0:02:57]} 6. Bb2 {[%clk 0:03:02]}  d5 {[%clk 0:02:55]} 7. Be2 {[%clk 0:03:02]}  Bd6 {[%clk 0:02:50]} 8. O-O {[%clk 0:03:03]}  c5 {[%clk 0:02:50]} 9. c4 {[%clk 0:03:01]}  dxc4 {[%clk 0:02:43]} 10. Na3 {[%clk 0:03:00]}  Nc6 {[%clk 0:02:36]} 11. Nxc4 {[%clk 0:03:00]}  Bc7 {[%clk 0:02:36]} 12. a4 {[%clk 0:02:59]}  Be6 {[%clk 0:02:34]} 13. Rb1 {[%clk 0:02:55]}  h6 {[%clk 0:02:14]} 14. Bxf6 {[%clk 0:02:49]}  Qxf6 {[%clk 0:02:12]} 15. Rxb7 {[%clk 0:02:49]}  Bb8 {[%clk 0:01:53]} 16. Qa1 {[%clk 0:02:43]}  Qg6 {[%clk 0:01:40]} 17. Rc1 {[%clk 0:02:35]}  Nb4 {[%clk 0:01:33]} 18. Nce5 {[%clk 0:02:27]}  Qf5 {[%clk 0:01:20]} 19. Rxc5 {[%clk 0:02:07]}  Bd6 {[%clk 0:01:19]} 20. Nxf7 {[%clk 0:02:00]}  Qxf7 {[%clk 0:00:51]} 21. Rxf7 {[%clk 0:01:49]}  Bxf7 {[%clk 0:00:51]} 22. Rc4 {[%clk 0:01:40]}  Bxc4 {[%clk 0:00:50]} 23. Bxc4+ {[%clk 0:01:39]}  Kh8 {[%clk 0:00:50]} 24. Nh4 {[%clk 0:01:38]}  Rac8 {[%clk 0:00:42]} 25. d3 {[%clk 0:01:34]}  Nc6 {[%clk 0:00:35]} 26. Nf5 {[%clk 0:01:31]}  Be5 {[%clk 0:00:34]} 27. Qd1 {[%clk 0:01:31]}  Ne7 {[%clk 0:00:33]} 28. Nxe7 {[%clk 0:01:29]}  Rxe7 {[%clk 0:00:33]} 29. g3 {[%clk 0:01:29]}  Rd7 {[%clk 0:00:32]} 30. Qg4 {[%clk 0:01:28]}  Rcd8 {[%clk 0:00:31]} 31. a5 {[%clk 0:01:28]}  Bf6 {[%clk 0:00:31]} 32. a6 {[%clk 0:01:25]}  Rd6 {[%clk 0:00:30]} 33. h4 {[%clk 0:01:24]}  Rb6 {[%clk 0:00:29]} 34. Qf5 {[%clk 0:01:21]}  Rb2 {[%clk 0:00:26]} 35. d4 {[%clk 0:01:20]}  Rb6 {[%clk 0:00:17]} 36. Bd3 {[%clk 0:01:20]}  Kg8 {[%clk 0:00:17]} 37. Qh7+ {[%clk 0:01:18]}  Kf7 {[%clk 0:00:18]} 38. Bc4+ {[%clk 0:01:18]}  Ke7 {[%clk 0:00:18]} 39. Qe4+ {[%clk 0:01:18]}  Kf8 {[%clk 0:00:17]} 40. h5 {[%clk 0:01:18]}  Rc8 {[%clk 0:00:17]} 41. Qd5 {[%clk 0:01:17]}  Ke7 {[%clk 0:00:12]} 42. Bb5 {[%clk 0:01:14]}  Rd6 {[%clk 0:00:11]} 43. Qb7+ {[%clk 0:01:14]}  Kd8 {[%clk 0:00:11]} 44. Qxa7 {[%clk 0:01:13]}  Rc7 {[%clk 0:00:06]} 45. Qb8+ {[%clk 0:01:12]} 1-0


[Site "https://www.chess.com"]

[Event "Titled Tuesday Blitz May 23 Late 2023"]
[White "Gurevich, Dmitry"]
[Black "Fishbein, Alexander"]
[WhiteFideId "2000407"]
[BlackFideId "2000377"]
[WhiteElo "2506"]
[BlackElo "2415"]
[Result "0-1"]
[Round "09"]
[TimeControl "180+2"]
[Date "2023.05.23"]
[WhiteClock "0:00:00"]
[BlackClock "0:00:10"]

1. d4 {[%clk 0:03:00]}  Nf6 {[%clk 0:02:59]} 2. c4 {[%clk 0:02:59]}  g6 {[%clk 0:02:59]} 3. Nc3 {[%clk 0:02:59]}  Bg7 {[%clk 0:02:59]} 4. e4 {[%clk 0:03:00]}  O-O {[%clk 0:02:59]} 5. Nf3 {[%clk 0:03:00]}  d6 {[%clk 0:03:00]} 6. Be2 {[%clk 0:03:00]}  e5 {[%clk 0:03:00]} 7. Be3 {[%clk 0:02:58]}  exd4 {[%clk 0:02:50]} 8. Nxd4 {[%clk 0:02:57]}  c6 {[%clk 0:02:49]} 9. O-O {[%clk 0:02:53]}  Re8 {[%clk 0:02:46]} 10. Bf3 {[%clk 0:02:52]}  Nbd7 {[%clk 0:02:46]} 11. Re1 {[%clk 0:02:49]}  Ne5 {[%clk 0:02:45]} 12. Be2 {[%clk 0:02:49]}  Nfg4 {[%clk 0:02:44]} 13. Bf4 {[%clk 0:02:46]}  h5 {[%clk 0:02:39]} 14. h3 {[%clk 0:02:42]}  Nf6 {[%clk 0:02:30]} 15. Bf1 {[%clk 0:02:37]}  Nh7 {[%clk 0:02:25]} 16. Qd2 {[%clk 0:02:34]}  Qe7 {[%clk 0:02:19]} 17. Rad1 {[%clk 0:02:26]}  a6 {[%clk 0:01:59]} 18. Bh6 {[%clk 0:02:23]}  Bh8 {[%clk 0:01:46]} 19. f4 {[%clk 0:02:21]}  Nd7 {[%clk 0:01:36]} 20. Nf3 {[%clk 0:01:59]}  Nc5 {[%clk 0:01:30]} 21. Qxd6 {[%clk 0:01:52]}  Qxd6 {[%clk 0:01:28]} 22. Rxd6 {[%clk 0:01:51]}  Be6 {[%clk 0:00:59]} 23. e5 {[%clk 0:01:43]}  a5 {[%clk 0:00:51]} 24. Nd4 {[%clk 0:01:32]}  Rad8 {[%clk 0:00:47]} 25. Nxe6 {[%clk 0:01:26]}  Rxd6 {[%clk 0:00:31]} 26. exd6 {[%clk 0:01:09]}  Nxe6 {[%clk 0:00:24]} 27. Rd1 {[%clk 0:00:57]}  Rd8 {[%clk 0:00:22]} 28. Ne4 {[%clk 0:00:51]}  f5 {[%clk 0:00:17]} 29. Ng5 {[%clk 0:00:48]}  Nhxg5 {[%clk 0:00:17]} 30. Bxg5 {[%clk 0:00:39]}  Nxg5 {[%clk 0:00:17]} 31. fxg5 {[%clk 0:00:38]}  Bxb2 {[%clk 0:00:17]} 32. d7 {[%clk 0:00:20]}  Kf7 {[%clk 0:00:16]} 33. Rd6 {[%clk 0:00:16]}  Be5 {[%clk 0:00:14]} 34. Rd3 {[%clk 0:00:15]}  Bf4 {[%clk 0:00:13]} 35. h4 {[%clk 0:00:14]}  Ke7 {[%clk 0:00:13]} 36. g3 {[%clk 0:00:14]}  Bd6 {[%clk 0:00:13]} 37. Kg2 {[%clk 0:00:12]}  Rxd7 {[%clk 0:00:13]} 38. Re3+ {[%clk 0:00:12]}  Kf8 {[%clk 0:00:13]} 39. Re6 {[%clk 0:00:12]}  Kf7 {[%clk 0:00:12]} 40. Re3 {[%clk 0:00:11]}  Bc5 {[%clk 0:00:12]} 41. Rd3 {[%clk 0:00:11]}  Re7 {[%clk 0:00:12]} 42. Kf3 {[%clk 0:00:10]}  a4 {[%clk 0:00:12]} 43. Be2 {[%clk 0:00:10]}  a3 {[%clk 0:00:12]} 44. Rb3 {[%clk 0:00:10]}  Rd7 {[%clk 0:00:12]} 45. Rd3 {[%clk 0:00:10]}  Rc7 {[%clk 0:00:11]} 46. Rb3 {[%clk 0:00:09]}  Ke7 {[%clk 0:00:10]} 47. Rd3 {[%clk 0:00:10]}  Bd6 {[%clk 0:00:10]} 48. Rb3 {[%clk 0:00:09]}  Kd8 {[%clk 0:00:08]} 49. Rd3 {[%clk 0:00:09]}  Rd7 {[%clk 0:00:09]} 50. Bd1 {[%clk 0:00:08]}  Kc7 {[%clk 0:00:09]} 51. Bb3 {[%clk 0:00:07]}  Re7 {[%clk 0:00:09]} 52. Rd2 {[%clk 0:00:04]}  Re4 {[%clk 0:00:09]} 53. Re2 {[%clk 0:00:04]}  Rxe2 {[%clk 0:00:09]} 54. Kxe2 {[%clk 0:00:02]}  Bxg3 {[%clk 0:00:10]} 55. c5 {[%clk 0:00:03]}  Bxh4 {[%clk 0:00:10]} 56. Bf7 {[%clk 0:00:03]}  Bxg5 {[%clk 0:00:10]} 57. Bxg6 {[%clk 0:00:03]}  h4 {[%clk 0:00:09]} 58. Bxf5 {[%clk 0:00:03]}  Be7 {[%clk 0:00:10]} 59. Kd3 {[%clk 0:00:00]}  Bxc5 {[%clk 0:00:10]} 0-1


[Site "https://www.chess.com"]

[Event "Titled Tuesday Blitz May 23 Late 2023"]
[White "Bartel, Michal"]
[Black "Kovalevsky, Stanislav"]
[WhiteFideId "1119257"]
[BlackFideId "13508598"]
[WhiteElo "2282"]
[BlackElo "2174"]
[Result "1-0"]
[Round "09"]
[TimeControl "180+2"]
[Date "2023.05.23"]
[WhiteClock "0:00:47"]
[BlackClock "0:00:07"]

1. e4 {[%clk 0:02:58]}  e6 {[%clk 0:03:00]} 2. d4 {[%clk 0:02:58]}  d5 {[%clk 0:03:00]} 3. Nc3 {[%clk 0:02:59]}  dxe4 {[%clk 0:03:01]} 4. Nxe4 {[%clk 0:03:00]}  Nf6 {[%clk 0:03:01]} 5. Bd3 {[%clk 0:03:00]}  Nc6 {[%clk 0:02:53]} 6. Nf3 {[%clk 0:02:57]}  Ne7 {[%clk 0:02:51]} 7. Nxf6+ {[%clk 0:02:56]}  gxf6 {[%clk 0:02:51]} 8. O-O {[%clk 0:02:54]}  Bd7 {[%clk 0:02:51]} 9. Bf4 {[%clk 0:02:54]}  Bc6 {[%clk 0:02:51]} 10. Re1 {[%clk 0:02:51]}  h5 {[%clk 0:02:43]} 11. Qe2 {[%clk 0:02:45]}  Nd5 {[%clk 0:02:14]} 12. Bd2 {[%clk 0:02:41]}  Qd6 {[%clk 0:02:04]} 13. c4 {[%clk 0:02:37]}  Nf4 {[%clk 0:02:04]} 14. Bxf4 {[%clk 0:02:37]}  Qxf4 {[%clk 0:02:05]} 15. d5 {[%clk 0:02:37]}  Bd7 {[%clk 0:01:55]} 16. Qe4 {[%clk 0:01:51]}  Qxe4 {[%clk 0:01:32]} 17. Bxe4 {[%clk 0:01:52]}  O-O-O {[%clk 0:01:32]} 18. Rad1 {[%clk 0:01:50]}  e5 {[%clk 0:01:30]} 19. Nh4 {[%clk 0:01:47]}  Bc5 {[%clk 0:01:16]} 20. Bf5 {[%clk 0:01:45]}  Rhg8 {[%clk 0:01:09]} 21. Bxd7+ {[%clk 0:01:43]}  Kxd7 {[%clk 0:01:10]} 22. Rd3 {[%clk 0:01:35]}  Rg4 {[%clk 0:01:04]} 23. g3 {[%clk 0:01:35]}  Rxc4 {[%clk 0:00:57]} 24. Rf3 {[%clk 0:01:35]}  Rg8 {[%clk 0:00:51]} 25. Kf1 {[%clk 0:01:27]}  Be7 {[%clk 0:00:36]} 26. Nf5 {[%clk 0:01:26]}  Rc2 {[%clk 0:00:31]} 27. Re2 {[%clk 0:01:23]}  Rxe2 {[%clk 0:00:27]} 28. Kxe2 {[%clk 0:01:24]}  Rg4 {[%clk 0:00:27]} 29. h4 {[%clk 0:01:21]}  Re4+ {[%clk 0:00:20]} 30. Kd2 {[%clk 0:01:15]}  Ra4 {[%clk 0:00:16]} 31. a3 {[%clk 0:01:13]}  b5 {[%clk 0:00:15]} 32. Ng7 {[%clk 0:01:06]}  Rd4+ {[%clk 0:00:14]} 33. Rd3 {[%clk 0:01:03]}  Rxd3+ {[%clk 0:00:09]} 34. Kxd3 {[%clk 0:01:04]}  Kd6 {[%clk 0:00:09]} 35. Ke4 {[%clk 0:01:04]}  a5 {[%clk 0:00:07]} 36. Nxh5 {[%clk 0:01:03]}  Kd7 {[%clk 0:00:06]} 37. Ng7 {[%clk 0:01:01]}  a4 {[%clk 0:00:05]} 38. h5 {[%clk 0:01:00]}  Bxa3 {[%clk 0:00:05]} 39. h6 {[%clk 0:00:55]}  Bxb2 {[%clk 0:00:05]} 40. h7 {[%clk 0:00:55]}  a3 {[%clk 0:00:06]} 41. h8=Q {[%clk 0:00:55]}  a2 {[%clk 0:00:07]} 42. Qe8+ {[%clk 0:00:52]}  Kd6 {[%clk 0:00:07]} 43. Qc6+ {[%clk 0:00:49]}  Ke7 {[%clk 0:00:07]} 44. Nf5+ {[%clk 0:00:50]}  Kf8 {[%clk 0:00:07]} 45. Qa8# {[%clk 0:00:47]} 1-0


[Site "https://www.chess.com"]

[Event "Titled Tuesday Blitz May 23 Late 2023"]
[White "Chakravarthi Reddy, M"]
[Black "Bryakin, Mikhail"]
[WhiteFideId "25009532"]
[BlackFideId "4165314"]
[WhiteElo "2201"]
[BlackElo "2467"]
[Result "0-1"]
[Round "09"]
[TimeControl "180+2"]
[Date "2023.05.23"]
[WhiteClock "0:00:03"]
[BlackClock "0:00:12"]

1. e4 {[%clk 0:03:00]}  c5 {[%clk 0:02:59]} 2. Nf3 {[%clk 0:03:00]}  Nc6 {[%clk 0:02:57]} 3. d4 {[%clk 0:02:57]}  cxd4 {[%clk 0:02:57]} 4. Nxd4 {[%clk 0:02:58]}  Qb6 {[%clk 0:02:56]} 5. Nb3 {[%clk 0:02:53]}  Nf6 {[%clk 0:02:56]} 6. Be3 {[%clk 0:02:47]}  Qb4+ {[%clk 0:02:47]} 7. c3 {[%clk 0:02:08]}  Qxe4 {[%clk 0:02:44]} 8. N1d2 {[%clk 0:02:09]}  Qg4 {[%clk 0:02:35]} 9. Be2 {[%clk 0:02:05]}  Qxg2 {[%clk 0:02:25]} 10. Bf3 {[%clk 0:02:05]}  Qg6 {[%clk 0:02:24]} 11. Nc4 {[%clk 0:01:39]}  d6 {[%clk 0:02:18]} 12. Nba5 {[%clk 0:01:34]}  Bd7 {[%clk 0:01:26]} 13. Nxb7 {[%clk 0:01:08]}  Rb8 {[%clk 0:01:20]} 14. Nba5 {[%clk 0:01:00]}  Nxa5 {[%clk 0:01:18]} 15. Nxa5 {[%clk 0:00:59]}  e6 {[%clk 0:01:09]} 16. Qe2 {[%clk 0:00:44]}  Qf5 {[%clk 0:00:49]} 17. Nc6 {[%clk 0:00:40]}  Rc8 {[%clk 0:00:37]} 18. Nxa7 {[%clk 0:00:38]}  Rc7 {[%clk 0:00:37]} 19. Bb6 {[%clk 0:00:31]}  Rc5 {[%clk 0:00:31]} 20. Bxc5 {[%clk 0:00:29]}  Qxc5 {[%clk 0:00:31]} 21. Qe3 {[%clk 0:00:22]}  Qc7 {[%clk 0:00:22]} 22. a4 {[%clk 0:00:20]}  Be7 {[%clk 0:00:21]} 23. Nb5 {[%clk 0:00:20]}  Qa5 {[%clk 0:00:19]} 24. b4 {[%clk 0:00:19]}  Qd8 {[%clk 0:00:19]} 25. Rg1 {[%clk 0:00:16]}  O-O {[%clk 0:00:18]} 26. Qh6 {[%clk 0:00:16]}  Ne8 {[%clk 0:00:19]} 27. Nd4 {[%clk 0:00:14]}  Kh8 {[%clk 0:00:17]} 28. Qh3 {[%clk 0:00:13]}  e5 {[%clk 0:00:16]} 29. Nf5 {[%clk 0:00:14]}  Qc8 {[%clk 0:00:16]} 30. Bg4 {[%clk 0:00:13]}  g6 {[%clk 0:00:15]} 31. Nh6 {[%clk 0:00:12]}  Bxg4 {[%clk 0:00:14]} 32. Nxg4 {[%clk 0:00:12]}  f5 {[%clk 0:00:13]} 33. Nh6 {[%clk 0:00:11]}  Nf6 {[%clk 0:00:13]} 34. a5 {[%clk 0:00:09]}  e4 {[%clk 0:00:12]} 35. a6 {[%clk 0:00:09]}  f4 {[%clk 0:00:12]} 36. a7 {[%clk 0:00:09]}  Qxh3 {[%clk 0:00:11]} 37. a8=Q {[%clk 0:00:06]}  Rxa8 {[%clk 0:00:12]} 38. Rxa8+ {[%clk 0:00:05]}  Kg7 {[%clk 0:00:12]} 39. Ng8 {[%clk 0:00:03]}  Nxg8 {[%clk 0:00:12]} 0-1


[Site "https://www.chess.com"]

[Event "Titled Tuesday Blitz May 23 Late 2023"]
[White "Rodriguez, Santiago"]
[Black "Szpar, Milosz"]
[WhiteFideId "3000591"]
[BlackFideId "1184989"]
[WhiteElo "2249"]
[BlackElo "2434"]
[Result "1/2-1/2"]
[Round "09"]
[TimeControl "180+2"]
[Date "2023.05.23"]
[WhiteClock "0:00:20"]
[BlackClock "0:00:55"]

1. d4 {[%clk 0:03:00]}  e5 {[%clk 0:02:58]} 2. dxe5 {[%clk 0:02:59]}  Qe7 {[%clk 0:02:57]} 3. Nf3 {[%clk 0:02:59]}  Nc6 {[%clk 0:02:56]} 4. Nc3 {[%clk 0:02:59]}  Nxe5 {[%clk 0:02:53]} 5. Nd5 {[%clk 0:02:59]}  Nxf3+ {[%clk 0:02:52]} 6. gxf3 {[%clk 0:02:59]}  Qd8 {[%clk 0:02:52]} 7. Bf4 {[%clk 0:02:56]}  d6 {[%clk 0:02:52]} 8. e4 {[%clk 0:02:55]}  c6 {[%clk 0:02:52]} 9. Nc3 {[%clk 0:02:53]}  Be6 {[%clk 0:02:53]} 10. Qd2 {[%clk 0:02:50]}  Qb6 {[%clk 0:02:50]} 11. O-O-O {[%clk 0:02:48]}  O-O-O {[%clk 0:02:47]} 12. Be3 {[%clk 0:02:48]}  Qa5 {[%clk 0:02:47]} 13. Qd4 {[%clk 0:02:20]}  Kb8 {[%clk 0:02:44]} 14. Rg1 {[%clk 0:02:11]}  Nf6 {[%clk 0:02:43]} 15. Rg5 {[%clk 0:02:05]}  b5 {[%clk 0:02:37]} 16. Bxb5 {[%clk 0:01:58]}  h6 {[%clk 0:02:33]} 17. Rc5 {[%clk 0:01:28]}  dxc5 {[%clk 0:02:30]} 18. Qxd8+ {[%clk 0:01:27]}  Qxd8 {[%clk 0:02:30]} 19. Rxd8+ {[%clk 0:01:27]}  Kc7 {[%clk 0:02:31]} 20. Ra8 {[%clk 0:01:09]}  cxb5 {[%clk 0:02:30]} 21. Bxc5 {[%clk 0:00:53]}  Bxc5 {[%clk 0:02:26]} 22. Rxh8 {[%clk 0:00:54]}  Bxf2 {[%clk 0:02:26]} 23. Nxb5+ {[%clk 0:00:52]}  Kc6 {[%clk 0:02:25]} 24. a4 {[%clk 0:00:50]}  a6 {[%clk 0:02:23]} 25. Nc3 {[%clk 0:00:49]}  Bg1 {[%clk 0:02:22]} 26. f4 {[%clk 0:00:35]}  Bxh2 {[%clk 0:02:19]} 27. f5 {[%clk 0:00:35]}  Bd7 {[%clk 0:02:15]} 28. Rf8 {[%clk 0:00:33]}  Be5 {[%clk 0:02:05]} 29. Rxf7 {[%clk 0:00:33]}  Bxc3 {[%clk 0:02:05]} 30. bxc3 {[%clk 0:00:30]}  Nxe4 {[%clk 0:02:06]} 31. Rxg7 {[%clk 0:00:29]}  Bxf5 {[%clk 0:02:06]} 32. Ra7 {[%clk 0:00:20]}  Kb6 {[%clk 0:01:56]} 33. Rf7 {[%clk 0:00:20]}  Bg6 {[%clk 0:01:38]} 34. Rg7 {[%clk 0:00:17]}  Bf5 {[%clk 0:01:35]} 35. Rf7 {[%clk 0:00:17]}  Bc8 {[%clk 0:01:31]} 36. Rh7 {[%clk 0:00:16]}  Nxc3 {[%clk 0:01:31]} 37. Rxh6+ {[%clk 0:00:16]}  Kb7 {[%clk 0:01:31]} 38. a5 {[%clk 0:00:15]}  Nb5 {[%clk 0:01:29]} 39. Kb2 {[%clk 0:00:13]}  Nd4 {[%clk 0:01:28]} 40. c4 {[%clk 0:00:12]}  Nc6 {[%clk 0:01:28]} 41. Rxc6 {[%clk 0:00:09]}  Kxc6 {[%clk 0:01:28]} 42. c5 {[%clk 0:00:10]}  Be6 {[%clk 0:01:23]} 43. Ka1 {[%clk 0:00:10]}  Bd7 {[%clk 0:01:19]} 44. Kb2 {[%clk 0:00:10]}  Kb5 {[%clk 0:01:19]} 45. c6 {[%clk 0:00:10]}  Bxc6 {[%clk 0:01:20]} 46. Ka1 {[%clk 0:00:09]}  Ka4 {[%clk 0:01:20]} 47. Kb1 {[%clk 0:00:10]}  Kb3 {[%clk 0:01:19]} 48. Ka1 {[%clk 0:00:11]}  Bd5 {[%clk 0:01:19]} 49. Kb1 {[%clk 0:00:11]}  Ka3 {[%clk 0:01:20]} 50. Ka1 {[%clk 0:00:11]}  Bc6 {[%clk 0:01:07]} 51. Kb1 {[%clk 0:00:12]}  Kb3 {[%clk 0:01:07]} 52. Ka1 {[%clk 0:00:13]}  Kc2 {[%clk 0:01:07]} 53. Ka2 {[%clk 0:00:12]}  Kd2 {[%clk 0:00:41]} 54. Ka1 {[%clk 0:00:13]}  Ke2 {[%clk 0:00:42]} 55. Kb1 {[%clk 0:00:12]}  Bb5 {[%clk 0:00:43]} 56. Ka1 {[%clk 0:00:12]}  Kf2 {[%clk 0:00:44]} 57. Kb1 {[%clk 0:00:13]}  Ke3 {[%clk 0:00:45]} 58. Ka1 {[%clk 0:00:14]}  Kd4 {[%clk 0:00:46]} 59. Kb1 {[%clk 0:00:15]}  Kc3 {[%clk 0:00:47]} 60. Ka1 {[%clk 0:00:15]}  Kb4 {[%clk 0:00:48]} 61. Kb1 {[%clk 0:00:16]}  Kxa5 {[%clk 0:00:49]} 62. Ka1 {[%clk 0:00:16]}  Kb4 {[%clk 0:00:50]} 63. Kb1 {[%clk 0:00:17]}  Kc3 {[%clk 0:00:50]} 64. Ka1 {[%clk 0:00:18]}  a5 {[%clk 0:00:51]} 65. Kb1 {[%clk 0:00:18]}  a4 {[%clk 0:00:52]} 66. Ka1 {[%clk 0:00:19]}  a3 {[%clk 0:00:53]} 67. Kb1 {[%clk 0:00:20]}  a2+ {[%clk 0:00:54]} 68. Ka1 {[%clk 0:00:20]}  Kb3 {[%clk 0:00:55]} 1/2-1/2


[Site "https://www.chess.com"]

[Event "Titled Tuesday Blitz May 23 Late 2023"]
[White "Weetik, Vjacheslav"]
[Black "Wizard_of_Odds"]
[WhiteFideId "4153472"]
[WhiteElo "2469"]
[BlackElo "2445"]
[Result "1-0"]
[Round "09"]
[TimeControl "180+2"]
[Date "2023.05.23"]
[WhiteClock "0:00:13"]
[BlackClock "0:00:00"]

1. e4 {[%clk 0:02:58]}  c5 {[%clk 0:02:59]} 2. Nf3 {[%clk 0:02:58]}  d6 {[%clk 0:02:59]} 3. d4 {[%clk 0:02:57]}  cxd4 {[%clk 0:03:00]} 4. Nxd4 {[%clk 0:02:58]}  Nf6 {[%clk 0:03:00]} 5. Nc3 {[%clk 0:02:58]}  g6 {[%clk 0:03:00]} 6. Be2 {[%clk 0:02:53]}  Bg7 {[%clk 0:02:59]} 7. O-O {[%clk 0:02:54]}  Nc6 {[%clk 0:02:58]} 8. Nb3 {[%clk 0:02:54]}  O-O {[%clk 0:02:57]} 9. Re1 {[%clk 0:02:55]}  a6 {[%clk 0:02:56]} 10. Bg5 {[%clk 0:02:53]}  h6 {[%clk 0:02:18]} 11. Bh4 {[%clk 0:02:46]}  g5 {[%clk 0:02:15]} 12. Bg3 {[%clk 0:02:44]}  b5 {[%clk 0:02:08]} 13. Bf1 {[%clk 0:02:40]}  Ng4 {[%clk 0:02:01]} 14. Rb1 {[%clk 0:02:24]}  Qb6 {[%clk 0:01:41]} 15. Nd5 {[%clk 0:02:15]}  Qd8 {[%clk 0:01:36]} 16. f3 {[%clk 0:02:09]}  Nge5 {[%clk 0:01:34]} 17. Bf2 {[%clk 0:02:01]}  Rb8 {[%clk 0:01:27]} 18. c3 {[%clk 0:01:56]}  e6 {[%clk 0:01:25]} 19. Ne3 {[%clk 0:01:55]}  Qc7 {[%clk 0:01:22]} 20. Qc2 {[%clk 0:01:46]}  Bb7 {[%clk 0:01:19]} 21. Rbd1 {[%clk 0:01:46]}  Rbd8 {[%clk 0:01:19]} 22. Kh1 {[%clk 0:01:45]}  Ng6 {[%clk 0:01:07]} 23. Bg3 {[%clk 0:01:43]}  Nce5 {[%clk 0:01:03]} 24. Nd4 {[%clk 0:01:40]}  Nf4 {[%clk 0:00:44]} 25. a4 {[%clk 0:01:37]}  bxa4 {[%clk 0:00:41]} 26. Qxa4 {[%clk 0:01:38]}  Neg6 {[%clk 0:00:39]} 27. Ra1 {[%clk 0:01:13]}  Ra8 {[%clk 0:00:38]} 28. Qa5 {[%clk 0:01:13]}  Qd7 {[%clk 0:00:30]} 29. Red1 {[%clk 0:01:11]}  Rfd8 {[%clk 0:00:17]} 30. Nc4 {[%clk 0:01:06]}  Qe7 {[%clk 0:00:08]} 31. Qb6 {[%clk 0:00:45]}  h5 {[%clk 0:00:07]} 32. Nc6 {[%clk 0:00:41]}  Bxc6 {[%clk 0:00:04]} 33. Qxc6 {[%clk 0:00:42]}  d5 {[%clk 0:00:03]} 34. Nb6 {[%clk 0:00:31]}  dxe4 {[%clk 0:00:03]} 35. Nxa8 {[%clk 0:00:30]}  Rxd1 {[%clk 0:00:03]} 36. Rxd1 {[%clk 0:00:30]}  exf3 {[%clk 0:00:04]} 37. Qxf3 {[%clk 0:00:29]}  h4 {[%clk 0:00:04]} 38. Bf2 {[%clk 0:00:29]}  h3 {[%clk 0:00:04]} 39. g3 {[%clk 0:00:27]}  Nd5 {[%clk 0:00:05]} 40. Nb6 {[%clk 0:00:15]}  Ne5 {[%clk 0:00:04]} 41. Nxd5 {[%clk 0:00:13]}  exd5 {[%clk 0:00:03]} 42. Qxd5 {[%clk 0:00:14]}  Ng4 {[%clk 0:00:00]} 43. Qd8+ {[%clk 0:00:13]} 1-0


[Site "https://www.chess.com"]

[Event "Titled Tuesday Blitz May 23 Late 2023"]
[White "Arnold, Ken"]
[Black "Ambartsumova, Karina"]
[WhiteFideId "2056836"]
[BlackFideId "4166299"]
[WhiteElo "2424"]
[BlackElo "2240"]
[Result "0-1"]
[Round "09"]
[TimeControl "180+2"]
[Date "2023.05.23"]
[WhiteClock "0:00:07"]
[BlackClock "0:00:27"]

1. d4 {[%clk 0:03:00]}  Nf6 {[%clk 0:02:59]} 2. Nf3 {[%clk 0:03:00]}  g6 {[%clk 0:02:59]} 3. g3 {[%clk 0:03:01]}  Bg7 {[%clk 0:02:59]} 4. Bg2 {[%clk 0:03:01]}  O-O {[%clk 0:02:59]} 5. O-O {[%clk 0:03:02]}  d6 {[%clk 0:03:00]} 6. c4 {[%clk 0:03:02]}  c6 {[%clk 0:03:00]} 7. b3 {[%clk 0:03:02]}  Ne4 {[%clk 0:02:59]} 8. Bb2 {[%clk 0:03:02]}  d5 {[%clk 0:02:45]} 9. Nc3 {[%clk 0:02:59]}  Bf5 {[%clk 0:02:36]} 10. Nxe4 {[%clk 0:02:58]}  Bxe4 {[%clk 0:02:35]} 11. Ne5 {[%clk 0:02:46]}  Bxg2 {[%clk 0:02:34]} 12. Kxg2 {[%clk 0:02:47]}  a5 {[%clk 0:02:28]} 13. Qc2 {[%clk 0:02:36]}  a4 {[%clk 0:02:17]} 14. Rfd1 {[%clk 0:02:30]}  Nd7 {[%clk 0:01:59]} 15. cxd5 {[%clk 0:02:26]}  cxd5 {[%clk 0:01:58]} 16. Rac1 {[%clk 0:02:21]}  Nxe5 {[%clk 0:01:46]} 17. dxe5 {[%clk 0:02:20]}  axb3 {[%clk 0:01:46]} 18. Qxb3 {[%clk 0:02:18]}  e6 {[%clk 0:01:43]} 19. Ba3 {[%clk 0:02:08]}  Re8 {[%clk 0:01:41]} 20. Bd6 {[%clk 0:02:05]}  Qa5 {[%clk 0:01:35]} 21. Qxb7 {[%clk 0:01:55]}  Qxa2 {[%clk 0:01:28]} 22. Qb5 {[%clk 0:01:16]}  Rec8 {[%clk 0:01:18]} 23. Rxc8+ {[%clk 0:00:58]}  Rxc8 {[%clk 0:01:19]} 24. Rc1 {[%clk 0:00:53]}  Qa8 {[%clk 0:01:14]} 25. Rxc8+ {[%clk 0:00:38]}  Qxc8 {[%clk 0:01:15]} 26. e3 {[%clk 0:00:37]}  h5 {[%clk 0:01:15]} 27. h3 {[%clk 0:00:33]}  Qc2 {[%clk 0:01:13]} 28. Qe8+ {[%clk 0:00:30]}  Kh7 {[%clk 0:01:13]} 29. Qxf7 {[%clk 0:00:30]}  Qe4+ {[%clk 0:01:10]} 30. Qf3 {[%clk 0:00:27]}  Kg8 {[%clk 0:01:03]} 31. Qxe4 {[%clk 0:00:26]}  dxe4 {[%clk 0:01:04]} 32. f3 {[%clk 0:00:25]}  exf3+ {[%clk 0:01:04]} 33. Kxf3 {[%clk 0:00:26]}  Kf7 {[%clk 0:01:04]} 34. Ke4 {[%clk 0:00:26]}  Bh6 {[%clk 0:01:04]} 35. Kd4 {[%clk 0:00:26]}  Bg5 {[%clk 0:01:03]} 36. e4 {[%clk 0:00:25]}  Bd2 {[%clk 0:01:02]} 37. Kc4 {[%clk 0:00:24]}  Be1 {[%clk 0:00:54]} 38. Kd3 {[%clk 0:00:21]}  Bxg3 {[%clk 0:00:53]} 39. Ke2 {[%clk 0:00:21]}  Bf4 {[%clk 0:00:52]} 40. Kf3 {[%clk 0:00:21]}  Bh2 {[%clk 0:00:52]} 41. Bc7 {[%clk 0:00:21]}  Bg1 {[%clk 0:00:50]} 42. Bd6 {[%clk 0:00:20]}  Bd4 {[%clk 0:00:51]} 43. Kf4 {[%clk 0:00:20]}  Bb2 {[%clk 0:00:50]} 44. Bc7 {[%clk 0:00:19]}  Bc1+ {[%clk 0:00:50]} 45. Kf3 {[%clk 0:00:18]}  g5 {[%clk 0:00:50]} 46. Bd8 {[%clk 0:00:19]}  Kg6 {[%clk 0:00:50]} 47. Be7 {[%clk 0:00:18]}  Bb2 {[%clk 0:00:50]} 48. Bf6 {[%clk 0:00:18]}  Bc1 {[%clk 0:00:45]} 49. Kg3 {[%clk 0:00:18]}  Kf7 {[%clk 0:00:42]} 50. Kf3 {[%clk 0:00:18]}  Ke8 {[%clk 0:00:41]} 51. Ke2 {[%clk 0:00:16]}  Kd7 {[%clk 0:00:40]} 52. Kd1 {[%clk 0:00:16]}  Bf4 {[%clk 0:00:40]} 53. Ke2 {[%clk 0:00:17]}  Kc6 {[%clk 0:00:40]} 54. Kd3 {[%clk 0:00:17]}  g4 {[%clk 0:00:33]} 55. hxg4 {[%clk 0:00:17]}  hxg4 {[%clk 0:00:34]} 56. Kd4 {[%clk 0:00:14]}  g3 {[%clk 0:00:27]} 57. Kd3 {[%clk 0:00:07]}  g2 {[%clk 0:00:27]} 0-1


[Site "https://www.chess.com"]